Cogmind - Beta 9.6 @@@ ROGUE MODE // 2020.04.29 @ 10:38:11 Player: Odoacre Result: Destroyed by G-47 Trooper with Particle Gun Performance ------------- Evolutions (2) 1000 Regions Visited (5) 1000 Robots Destroyed (31) 155 Value Destroyed (744) 744 Prototype IDs (2) 40 Alien Tech Used (0) 0 Bonus (0) 0 TOTAL SCORE: 2939 Bonus ------- None Cogmind --------- Core Integrity 0/550 Matter 116/300 Energy 100/100 System Corruption 0% Temperature Cool (9) Movement Core (150) Ox2 Location -8/Materials Parts ------- > --- POWER (1) -------- (None) > --- PROPULSION (3) --- (None) > --- UTILITY (5) ------ Medium Storage Unit Advanced Visual Processing Unit > --- WEAPON (2) ------- (None) > --- INVENTORY (8) ---- Medium Matter Pod (100) Recoil Stabilizer Improved Trap Extractor Mining Laser Peak State ------------ > --- POWER ------------ Micro Nuclear Core > --- PROPULSION ------- Light Treads Aluminum Leg Titanium Leg > --- UTILITY ---------- Medium Storage Unit Visual Processing Unit Improved Terrain Scan Processor Recoil Stabilizer Light Armor Plating > --- WEAPON ----------- Heavy Assault Rifle Improved Light Cannon > --- INVENTORY -------- Medium Matter Pod Improved Trap Extractor Rocket Launcher Mining Laser Mace [Rating: 24] Favorites ----------- Power Ion Engine Engine Ion Engine Power Core Micro Nuclear Core Propulsion Aluminum Leg Treads Light Treads Leg Aluminum Leg Wheel Wheel Utility Medium Storage Unit Device Recoil Stabilizer Storage Medium Storage Unit Processor Improved Terrain Scan Processor Protection Improved Light Armor Plating Weapon Light Assault Rifle Energy Gun Small Laser Energy Cannon Particle Cannon Ballistic Gun Light Assault Rifle Ballistic Cannon Improved Light Cannon Launcher Grenade Launcher Special Weapon Mining Laser Impact Weapon Mace Build | -11 -10 -10 -9 -9 -8 ------- Run | Scr Mat Min Mat Min Mat Slots Evolved 4 | . . . 2 . 2 Power . | . . . . . . Propulsion 1 | . . . 1 . . Utility 3 | . . . 1 . 2 Weapon . | . . . . . . Parts Attached 42 | 6 3 3 16 . 14 Power 6 | 1 1 1 2 . 1 Engine 5 | 1 1 1 2 . . Core 1 | . . . . . 1 Reactor . | . . . . . . Propulsion 11 | 2 . 2 3 . 4 Treads 2 | . . . 2 . . Leg 8 | 2 . 2 1 . 3 Wheel 1 | . . . . . 1 Hover . | . . . . . . Flight . | . . . . . . Utility 11 | 1 1 . 4 . 5 Device 3 | . . . 2 . 1 Storage 2 | 1 1 . . . . Processor 4 | . . . 2 . 2 Hackware . | . . . . . . Protection 2 | . . . . . 2 Artifact . | . . . . . . Weapon 14 | 2 1 . 7 . 4 Energy Gun 2 | 1 . . 1 . . Energy Cannon 2 | . . . 2 . . Ballistic Gun 4 | 1 1 . 1 . 1 Ballistic Cannon 1 | . . . 1 . . Launcher 3 | . . . 1 . 2 Special Weapon 1 | . . . 1 . . Impact Weapon 1 | . . . . . 1 Slashing Weapon . | . . . . . . Piercing Weapon . | . . . . . . Special Melee Weapon . | . . . . . . Unidentified Prototypes . | . . . . . . Parts Lost 21 | . . 1 5 . 15 Power 2 | . . . 1 . 1 Propulsion 8 | . . . 1 . 7 Utility 5 | . . . 2 . 3 Weapon 6 | . . 1 1 . 4 Highest Loss Streak 9 | . . 1 2 . 9 Average Slot Usage (%) 87 | . 96 100 83 100 75 Engine 9 | . 14 14 10 11 . Core 2 | . . . . . 7 Treads 2 | . . . 4 11 3 Leg 21 | . 28 28 20 22 13 Device 3 | . . . 4 . 5 Storage 16 | . 24 28 11 11 9 Processor 10 | . . . 12 22 18 Energy Gun 1 | . 2 . 2 . . Energy Cannon 3 | . . . 9 11 . Ballistic Gun 11 | . 25 28 1 . 4 Ballistic Cannon 2 | . . . 1 11 3 Launcher 1 | . . . 3 . 2 Naked Turns . | . . . . . . Heaviest Build 25 | 12 17 19 21 21 25 Greatest Support 27 | 20 20 27 27 27 27 Greatest Overweight (x) 3 | 3 . . 1 . 3 Average Overweight (x) . | . . . . . . Largest Inventory Capacity 10 | 6 10 10 10 8 8 Average Capacity 8 | 5 8 10 8 8 8 Most Carried 10 | . 7 10 9 7 8 Average Carried 5 | . 1 9 6 6 5 Final Capacity 10 | 6 10 10 8 8 8 Final Carried 10 | . 7 10 6 7 4 Class Distribution -------------------- 88% | Mutant 11% | Scavenger-Mutant Dominant Class ---------------- Mutant | -10/Materials Mutant | -10/Mines Mutant | -9/Materials Mutant | -9/Mines Mutant | -8/Materials Resources | -11 -10 -10 -9 -9 -8 ----------- Run | Scr Mat Min Mat Min Mat Matter Collected 686 | 144 73 142 218 . 109 Remotely . | . . . . . . Salvage Created 698 | . 93 51 311 . 243 Parts 47 | . 11 1 23 . 12 Haulers Intercepted . | . . . . . . Recyclers Shooed . | . . . . . . Parts Field Recycled . | . . . . . . Retrieved Matter . | . . . . . . Parts Self-Destructed . | . . . . . . Prevented . | . . . . . . Kills | -11 -10 -10 -9 -9 -8 ------- Run | Scr Mat Min Mat Min Mat Combat Hostiles Destroyed 25 | . 6 1 11 . 7 Guns 8 | . 6 1 . . 1 Cannons 7 | . . . 5 . 2 AOE 9 | . . . 6 . 3 Classes Destroyed 10 | . 1 1 4 . 4 Worker 2 | . . . 1 . 1 Builder 1 | . . . . . 1 Recycler 1 | . . . 1 . . Operator 1 | . . . . . 1 Watcher 1 | . . . 1 . . Swarmer 13 | . 6 . 7 . . Grunt 8 | . . 1 3 . 4 Duelist 1 | . . . . . 1 Sentry 2 | . . . 1 . 1 Hunter 1 | . . . . . 1 Best Kill Streak 5 | . 3 1 5 . 3 Combat Bots Only 3 | . 3 1 3 . 2 Max Kills in Single Turn 2 | . 1 1 2 . 2 Gunslinging . | . . . . . . Exploded 2 | . . . 2 . 2 Melee . | . . . . . . Uniques/NPCs Destroyed . | . . . . . . Combat | -11 -10 -10 -9 -9 -8 -------- Run | Scr Mat Min Mat Min Mat Damage Taken 2938 | . 241 250 558 . 1889 Core 805 | . 53 73 126 . 553 Absorbed by Shields 21 | . . . 21 . . Core Remaining (%) 72 | 100 . 49 . 68 . Volleys Fired 91 | . 19 4 33 . 35 Largest 2 | . 2 2 2 . 2 Hottest 108 | . 60 40 108 . 107 Shots Fired 141 | . 38 8 43 . 52 Gun 70 | . 38 8 5 . 19 Cannon 60 | . . . 32 . 28 Launcher 11 | . . . 6 . 5 Special . | . . . . . . Kinetic 83 | . 31 8 3 . 41 Thermal 40 | . . . 34 . 6 Explosive 11 | . . . 6 . 5 Electromagnetic 7 | . 7 . . . . Robot Hit Streak 10 | . 4 3 5 . 10 Robot Miss Streak 9 | . 5 6 9 . 4 Penetration Max . | . . . . . . Secondary Targets . | . . . . . . Shots Hit Robots 88 | . 18 5 19 . 46 Core Hits 45 | . 8 3 15 . 19 Critical Hits 1 | . . . . . 1 Critical Kills . | . . . . . . Critical Parts Destroyed 1 | . . . . . 1 Melee Attacks 10 | . . . . . 10 Impact 10 | . . . . . 10 Slashing . | . . . . . . Piercing . | . . . . . . Sneak Attacks . | . . . . . . Combat Hostiles . | . . . . . . Follow-up Attacks . | . . . . . . Damage Inflicted 2361 | . 169 39 916 . 1237 Guns 401 | . 124 39 19 . 219 Cannons 864 | . . . 368 . 496 Explosions 902 | . 45 . 501 . 356 Melee 166 | . . . . . 166 Ramming 28 | . . . 28 . . Kinetic 738 | . 80 39 28 . 591 Thermal 528 | . 45 . 359 . 124 Explosive 857 | . . . 501 . 356 Electromagnetic 44 | . 44 . . . . Impact 166 | . . . . . 166 Slashing . | . . . . . . Piercing . | . . . . . . Highest Corruption . | . . . . . . Average Corruption . | . . . . . . Corruption Purged . | . . . . . . Overload Shots . | . . . . . . Overflow Damage 59 | . . . 23 . 36 Projectiles 1 | . . . . . 1 Explosions 50 | . . . 23 . 27 Melee 8 | . . . . . 8 Knockbacks 9 | . . . 2 . 7 Impact 3 | . . . 1 . 2 Kinetic 5 | . . . 1 . 4 Secondary 1 | . . . . . 1 Self-Inflicted Damage 173 | . 32 . 74 . 67 Shots 6 | . 1 . 3 . 2 Rammed 10 | . . . 10 . . Targets Rammed 12 | . . . 12 . . Kicked 2 | . . . 2 . . Crushed . | . . . . . . Highest Temperature 235 | . 52 9 235 . 198 Average Temperature 66 | . 18 9 77 . 63 Received Heat Transfer 991 | . . 33 94 . 864 Siege Activations . | . . . . . . Robots Corrupted . | . . . . . . Combat Hostiles . | . . . . . . Parts Fried 2 | . . . . . 2 Impact Corruptions 1 | . . . . . 1 Robots Melted . | . . . . . . Combat Hostiles . | . . . . . . Parts Melted . | . . . . . . Heat Transferred 926 | . 50 . 654 . 222 Parts Sabotaged . | . . . . . . Parts Stolen . | . . . . . . Parts Stripped . | . . . . . . Power Chain Reactions 1 | . 1 . . . . Missiles Intercepted . | . . . . . . Alert | -11 -10 -10 -9 -9 -8 ------- Run | Scr Mat Min Mat Min Mat Peak Influence 367 | . 150 103 367 64 216 Average Influence 128 | . 104 85 221 64 101 Maximum Alert Level 1 | . . . 1 . 1 Low Security (%) 82 | 100 100 100 44 100 94 Level 1 17 | . . . 55 . 5 Level 2 . | . . . . . . Level 3 . | . . . . . . Level 4 . | . . . . . . Level 5 . | . . . . . . High Security . | . . . . . . Max Security . | . . . . . . Squads Dispatched 5 | . 1 . 1 . 3 Investigation 2 | . 1 . 1 . . Extermination . | . . . . . . Reinforcement 3 | . . . . . 3 Assault . | . . . . . . Garrison . | . . . . . . Intercept . | . . . . . . Construction Impeded 1 | . . . . . 1 Haulers Reinforced . | . . . . . . Stealth | -11 -10 -10 -9 -9 -8 --------- Run | Scr Mat Min Mat Min Mat Distress Signals 5 | . . . 3 . 2 Communications Jammed . | . . . . . . Distress Signals . | . . . . . . Times Spotted 53 | . 8 5 19 . 21 Peak Tracking Total 6 | . 3 2 5 . 6 Tactical Retreats 6 | . . 1 . . 5 Traps | -11 -10 -10 -9 -9 -8 ------- Run | Scr Mat Min Mat Min Mat Traps Triggered 2 | . 1 1 . . . Indirectly . | . . . . . . Trap Hack Attempts . | . . . . . . Triggered . | . . . . . . Disarmed . | . . . . . . Reprogrammed . | . . . . . . Reused . | . . . . . . Traps Extracted . | . . . . . . Installed . | . . . . . . Triggered . | . . . . . . Machines | -11 -10 -10 -9 -9 -8 ---------- Run | Scr Mat Min Mat Min Mat Machines Disabled 4 | . . . 3 . 1 Max in Single Turn 1 | . . . 1 . 1 Machines Sabotaged . | . . . . . . Garrisons Compromised . | . . . . . . Overloaded Fab Kills . | . . . . . . Fab Network Shutdowns . | . . . . . . Hacking | -11 -10 -10 -9 -9 -8 --------- Run | Scr Mat Min Mat Min Mat Machines Accessed 5 | . 2 1 1 . 1 Terminals 4 | . 2 . 1 . 1 Fabricators . | . . . . . . Repair Stations . | . . . . . . Recycling Units . | . . . . . . Scanalyzers . | . . . . . . Garrison Access . | . . . . . . Total Hacks 13 | . 5 1 5 . 2 Successful 6 | . 2 1 3 . . Failed 7 | . 3 . 2 . 2 Catastrophic 1 | . . . . . 1 Database Lockouts . | . . . . . . Manual 6 | . 4 . 1 . 1 Terminals 12 | . 5 . 5 . 2 Fabricators . | . . . . . . Repair Stations . | . . . . . . Recycling Units . | . . . . . . Scanalyzers . | . . . . . . Garrison Access . | . . . . . . Terminal Hacks 4 | . 1 1 2 . . Record 2 | . . . 2 . . Prototype ID Bank 1 | . 1 . . . . Open Door 1 | . . 1 . . . Fabricator Hacks . | . . . . . . Repair Station Hacks . | . . . . . . Recycling Unit Hacks . | . . . . . . Scanalyzer . | . . . . . . Garrison Access Hacks . | . . . . . . Unauthorized Hacks 2 | . 1 . 1 . . Terminals 2 | . 1 . 1 . . Botnet 2 | . 1 . 1 . . Fabricators . | . . . . . . Repair Stations . | . . . . . . Recycling Units . | . . . . . . Scanalyzers . | . . . . . . Garrison Access . | . . . . . . Data Cores Recovered . | . . . . . . Used . | . . . . . . Hacking Detections 4 | . 2 . 1 . 1 Full Trace Events 1 | . . . 1 . . Feedback Events . | . . . . . . Feedback Blocked . | . . . . . . Robot Schematics Acquired . | . . . . . . Robots Built . | . . . . . . Matter . | . . . . . . Time . | . . . . . . Total Robot Build Rating . | . . . . . . Part Schematics Acquired . | . . . . . . Parts Built . | . . . . . . Matter . | . . . . . . Time . | . . . . . . Total Part Build Rating . | . . . . . . Parts Repaired . | . . . . . . Time . | . . . . . . Parts Recycled . | . . . . . . Recycled Matter . | . . . . . . Retrieved Matter . | . . . . . . Retrieved Components . | . . . . . . Parts Scanalyzed . | . . . . . . Part Schematics Acquired . | . . . . . . Parts Damaged . | . . . . . . Bothacking | -11 -10 -10 -9 -9 -8 ------------ Run | Scr Mat Min Mat Min Mat Used RIF Installer . | . . . . . . Robots Hacked . | . . . . . . Non-combat . | . . . . . . Combat . | . . . . . . Robot Hacks Applied . | . . . . . . Relay Couplers Released . | . . . . . . Robots Rewired . | . . . . . . Allies Hacked . | . . . . . . Hacks Repelled . | . . . . . . Allies | -11 -10 -10 -9 -9 -8 -------- Run | Scr Mat Min Mat Min Mat Total Allies . | . . . . . . Largest Group . | . . . . . . Highest-Rated Group . | . . . . . . Highest-Rated Ally . | . . . . . . Total Orders . | . . . . . . Ally Attacks . | . . . . . . Total Damage . | . . . . . . Kills . | . . . . . . Allies Corrupted . | . . . . . . Allies Melted . | . . . . . . Intel | -11 -10 -10 -9 -9 -8 ------- Run | Scr Mat Min Mat Min Mat Robot Analysis Total . | . . . . . . Derelict Logs Recovered 2 | . . 1 . 1 . Drone Launches . | . . . . . . Drone Recoveries . | . . . . . . Exploration | -11 -10 -10 -9 -9 -8 ------------- Run | Scr Mat Min Mat Min Mat Turns Passed 1554 | 45 297 265 444 84 419 Spaces Moved 932 | 32 185 192 236 67 220 Core 23 | 11 . . . . 12 Treads 51 | . . . 51 . . Legs 829 | 21 185 192 185 67 179 Wheels 29 | . . . . . 29 Hover . | . . . . . . Flight . | . . . . . . Fastest Speed 50 | 50 120 120 125 125 100 Average Speed 126 | 116 120 124 133 125 127 Slowest Speed 200 | 200 120 125 180 125 200 Overloaded Moves . | . . . . . . Propulsion Burnouts . | . . . . . . Robots Hopped . | . . . . . . Cave-ins Triggered . | . . . . . . Exploration Rate (%) 25 | 4 41 31 26 29 20 Regions Visited 5 Branch Regions 2 Pre-discovered Areas 1 | . . . . 1 . Known Exits Taken . | . . . . . . Unknown Exits Taken 5 | 1 1 1 1 1 . Scrap Searched 2 | . . 2 . . . Spaces Dug . | . . . . . . Terrain Destroyed 68 | . . . 28 . 40 Melee . | . . . . . . Projectile . | . . . . . . AOE 68 | . . . 28 . 40 Actions | -11 -10 -10 -9 -9 -8 --------- Run | Scr Mat Min Mat Min Mat Total 1147 | 37 227 212 315 67 289 Wait 16 | . 12 4 . . . Move 927 | 31 184 191 235 66 220 Hop . | . . . . . . Pick Up 24 | . 7 5 7 1 4 Fast Attach 23 | 6 3 . 8 . 6 Attach 9 | . . . 5 . 4 Detach 1 | . . . . . 1 Swap 10 | . . 3 3 . 4 Drop 24 | . 2 5 12 . 5 Fire 91 | . 19 4 33 . 35 Melee 10 | . . . . . 10 Ram . | . . . . . . Kick 9 | . . . 9 . . Crush 3 | . . . 3 . . Escape Stasis . | . . . . . . Rewire . | . . . . . . Trap . | . . . . . . Miscellaneous . | . . . . . . Route ------- -11/Scrapyard -10/Materials (discovered 2 exits: *Min x2) -10/Mines -9/Materials (discovered 2 exits: [*Min] / Sto) -9/Mines -8/Materials History --------- Turn | Location | Event 2 | -11/Scrapyard | Met Revision 17 16 | -11/Scrapyard | Discovered new exit (range 15) 46 | -11/Scrapyard | Entered Materials 200 | -10/Materials | Discovered new exit (range 6) 280 | -10/Materials | Discovered new exit (range 15) 301 | -10/Materials | Build established: Mutant 343 | -10/Materials | Entered Mines 346 | -10/Mines | Met a Derelict who couldn't figure out how to use a Trap Extractor 433 | -10/Mines | Learned location of 1 exit from Materials 483 | -10/Mines | Assisted by bots powering up and referring to "LRC-V3" 603 | -10/Mines | Assembled infested the area 603 | -10/Mines | Discovered new exit (range 5) 607 | -10/Mines | Core integrity fell below 50% 608 | -10/Mines | Assisted by a Guerilla fighting off Assembled 608 | -10/Mines | Entered Materials 608 | -9/Materials | Evolved 2 slots: Propulsion x1, Utility x1 609 | -9/Materials | Identified exit to Storage 1020 | -9/Materials | Discovered new exit (range 16) 1052 | -9/Materials | Entered Mines 1059 | -9/Mines | Received a Rocket Launcher from a helpful Derelict 1120 | -9/Mines | Discovered new exit (range 15) 1123 | -9/Mines | Learned location of Storage (-9) 1136 | -9/Mines | Entered Materials 1136 | -8/Materials | Evolved 2 slots: Utility x2 1341 | -8/Materials | Lost 3 parts (1n1u1w) 1509 | -8/Materials | Core integrity fell below 50% 1525 | -8/Materials | Core integrity fell below 20% 1555 | -8/Materials | Destroyed by G-47 Trooper with Particle Gun Last Messages --------------- 01513_ U-05 Engineer lays Concrete. 01515_ Acquired Aluminum Leg. 01515_ U-05 Engineer lays Concrete. 01517_ R-06 Scavenger collects Welding Torch. 01517_ U-05 Engineer lays Concrete. 01520_ U-05 Engineer builds a Wall. 01520_ Aluminum Leg destroyed. 01521_ U-05 Engineer lays Concrete. 01525_ U-05 Engineer builds a Wall. 01527_ U-05 Engineer lays Concrete. 01532_ U-05 Engineer builds a Wall. 01532_ U-05 Engineer lays Concrete. 01533_ Melee Analysis Suite destroyed. 01536_ U-05 Engineer lays Concrete. 01537_ Mace destroyed. 01537_ U-05 Engineer lays Concrete. 01539_ Imp. Aluminum Leg destroyed. 01539_ W-25 Informer sends out distress signal. 01546_ U-05 Engineer builds a Wall. 01551_ U-05 Engineer builds a Door. Map ----- +----------------------------------------------------+ | ?????????????????????????????????????????????????? | | ?????????????????????????????????????????????????? | | ?????????????????????????????????????????????????? | | ?????????????????????????????????????????????????? | | ?????????????????????????????????????????????????? | | ?????????????????????????????????????????????????? | | ?????????????????????????????????????????????????? | | ?????????????????????????????????????????????????? | | ?????????????????????????????????????????????????? | | ?????????????????????????????????????????????????? | | ?????????????????????????????????????????????????? | | ?????????????????????????????????????????????????? | | ?????????????????????????????????????????????????? | | ???????????????????#########?????????????????????? | | ???????????????????# #???????????????????? | | ???????????????????# #???????????????????? | | ???????????????????# """ #???????????????????? | | ???????????????????# """"" #???????????????????? | | ???????????????????# """"" #???????????????????? | | ???????????????????#! """"" #???????????????????? | | ???????????????????# """ #???????????????????? | | ???????????????????# [ #???????????????????? | | ???????????????????#####+#########???????????????? | | ??????????????????????# + [ T #???????????????? | | ??????????????????????# # #???????????????? | | ??????????????????????# @# """ !#???????????????? | | ??????????????????????# + """ #???????????????? | | ??????????????????????# # """ !#???????????????? | | ??????????????????????# # #???????????????? | | ??????????????????????# ########???????????????? | | ????? ??????????????#gg #?#######??????????????? | | ????? ??????????????# g# ??????????????? | | ????# ??????????????# # """"" ???????????????? | | ????# ??????????????# Y ""T"" ??????########## | | ????# ??????????????# # /// ??# | | ????# ??????????????# ou# ! * // #?# "" | | ????# #??????######## ############### ! """ | | ????# #??????# # # # ## S" | | ????# #??????# # # # """ ## """ | | ????# #??????#""" # # """ # """ ## """ ! | | ????# ########""" + + """ # """ ## """ | | ????# #==**!!#""" # # """ # ## | | ????# #==**!!# # # ###+### | | ????# # ] #### # #########+#### # #? | | ????# # ##### % T #? | | # % % | "" #? | | """ + % ############ #? | | """ # % #??# ### ##? | | "???# ###+###### ##?# """ #?# #?? | | ????# #??????##### " T#?# """ #?# #?? | +----------------------------------------------------+ Best States ------------- Heat Dissipation 31 Energy Generation 15 Energy Capacity 250 Matter Stores 300 Matter Capacity 300 Sight Range 20 Terrain Scan Range 16 Terrain Scan Density 110 Armor Coverage 150 Evasion (%) 40 Melee Accuracy 5 Recoil Reduction 2 Item Schematics ----------------- None Robot Schematics ------------------ None Fabricated ------------ Nothing Alien Tech Used ----------------- None Achievements -------------- None Challenges ------------ None Game ------ Seed RecoilGravityRail Manual? 0 Play Time 00:35:11 Cumulative 21.2 hours Start 2020.04.29 @ 10:01:36 End 2020.04.29 @ 10:38:11 Sessions 1 Manual Loads 0 Difficulty Rogue Special Mode None Game No. 31 Rogue 30 Adventurer 1 Explorer 0 Win Type - Total 0 Types 0/0/0/0/0/0/0 Lore% 22 Gallery% 21 Achievement% 18 Wizard Run 0 Options --------- ASCII 1 Keyboard 0 Movement Vi Keybinds 0 Fullscreen 1 Font 28/SmallcapsGlow Map View 84x54 Tactical HUD 1 Map Filters NONE Filters NONE Steam 1 RUN: 5c1bc2b1-3c9f-4833-b715-1393d70589b6